bitfinex/quotes_BTCUSD_20260110
["timestamp","ask_amount","ask_price","bid_price","bid_amount"]
[1768033369465,0.02208,90709.0,90688.0,0.01102681]
[1768033369466,0.04510047,90703.0,90688.0,0.01102681]
[1768033369685,0.04510047,90703.0,90690.0,0.01102657]
[1768033369984,0.04510047,90703.0,90691.0,0.01102645]
[1768033370365,0.04510047,90703.0,90690.0,0.21908515]
[1768033370562,0.04510047,90703.0,90690.0,0.23011172]
[1768033377482,0.04510047,90703.0,90691.0,0.01102645]
[1768033378090,0.04510047,90703.0,90692.0,0.01102633]
[1768033378860,0.04510047,90703.0,90691.0,0.01102645]
[1768033380342,0.04510047,90703.0,90690.0,0.23011172]
[1768033380543,0.04510047,90703.0,90691.0,0.01102645]
[1768033380744,0.04510047,90703.0,90692.0,0.01102633]
[1768033381348,0.04510047,90703.0,90690.0,0.23011172]
[1768033381548,0.04510047,90703.0,90691.0,0.01102645]
[1768033381768,0.04510047,90703.0,90690.0,0.21908515]
[1768033382551,0.05612546,90703.0,90690.0,0.21908515]
[1768033383381,0.04510047,90703.0,90690.0,0.30921192]
[1768033383811,0.04510047,90703.0,90691.0,0.01102645]
[1768033384700,0.04510047,90703.0,90691.0,0.01087601]
[1768033385346,0.04510047,90703.0,90690.0,0.30921192]
[1768033385528,0.04510047,90703.0,90691.0,0.01102645]
[1768033385695,0.04510047,90703.0,90690.0,0.30921192]
[1768033386098,0.04510047,90703.0,90690.0,0.0791002]
[1768033386297,0.04510047,90703.0,90690.0,0.29818535]
[1768033386705,0.04510047,90703.0,90690.0,0.30921192]
[1768033386906,0.04831072,90702.0,90690.0,0.29818535]
[1768033387106,0.04831072,90697.0,90690.0,0.0791002]
[1768033387330,0.00332361,90697.0,90688.0,0.0791002]
[1768033387740,0.00332361,90697.0,90687.0,0.21908515]
[1768033390533,0.00332361,90697.0,90685.0,0.02208]
[1768033391683,0.01434933,90697.0,90685.0,0.02208]
[1768033391883,0.01102584,90696.0,90685.0,0.02208]
[1768033392042,0.01434933,90697.0,90685.0,0.02208]
[1768033394161,0.05933656,90696.0,90682.0,0.01102754]
[1768033394376,0.05933668,90695.0,90679.0,0.01102791]
[1768033394583,0.01102608,90694.0,90681.0,0.01102766]
[1768033394735,0.05933668,90695.0,90680.0,0.23011294]
[1768033394942,0.04831072,90695.0,90682.0,0.01102754]
[1768033395345,0.04831072,90695.0,90681.0,0.01102766]
[1768033395346,0.05933668,90695.0,90681.0,0.01102766]
[1768033395753,0.04831072,90695.0,90682.0,0.01102754]
[1768033396783,0.01102584,90696.0,90682.0,0.05860958]
[1768033399052,0.01102608,90694.0,90682.0,0.04758204]
[1768033399274,0.01102584,90696.0,90682.0,0.05860958]
[1768033399858,0.01102596,90695.0,90682.0,0.04758204]
[1768033400057,0.01102584,90696.0,90682.0,0.05860958]
[1768033400265,0.01102584,90696.0,90682.0,0.04758204]
[1768033400266,0.01102596,90695.0,90682.0,0.04758204]
[1768033403390,0.01102608,90694.0,90682.0,0.04758204]
[1768033403958,0.04831072,90694.0,90680.0,0.23011294]
[1768033404258,0.01102669,90689.0,90678.0,0.02208]
[1768033404568,0.01102681,90688.0,90678.0,0.02208]
[1768033404996,0.01102681,90688.0,90676.0,0.0001212]
[1768033405223,0.01102669,90689.0,90676.0,0.0001212]
[1768033405431,0.01102657,90690.0,90676.0,0.0001212]
[1768033405689,0.01102669,90689.0,90676.0,0.0001212]
[1768033405892,0.01102657,90690.0,90676.0,0.01114947]
[1768033406042,0.01102657,90690.0,90680.0,0.21908515]
[1768033407303,0.01102669,90689.0,90676.0,0.0001212]
[1768033407515,0.04831072,90685.0,90676.0,0.0001212]
[1768033407701,0.04831072,90682.0,90676.0,0.0001212]
[1768033407900,0.04831072,90681.0,90668.0,0.01102924]
[1768033408103,0.04831072,90679.0,90667.0,0.0001518]
[1768033408402,0.04831072,90677.0,90667.0,0.0001518]
[1768033408546,0.04818972,90677.0,90667.0,0.0001518]
[1768033408766,0.04818972,90677.0,90667.0,0.0005038]
[1768033408988,0.04818972,90677.0,90667.0,0.01153317]
[1768033409191,0.04818972,90677.0,90667.0,0.0005038]
[1768033410390,0.04818972,90677.0,90667.0,0.01153317]
[1768033410744,0.04818972,90677.0,90668.0,0.01102924]
[1768033410946,0.04818972,90677.0,90667.0,0.01153317]
[1768033411890,0.04818972,90677.0,90668.0,0.01102924]
[1768033412329,0.04818972,90677.0,90667.0,0.01153317]
[1768033413255,0.04818972,90677.0,90667.0,0.0005038]
[1768033414435,0.05921787,90677.0,90667.0,0.0005038]
[1768033414799,0.04818972,90677.0,90667.0,0.0005038]
[1768033416286,0.04818972,90677.0,90667.0,0.01153317]
[1768033419661,0.04814841,90677.0,90667.0,0.01153317]
[1768033420220,0.04814841,90677.0,90667.0,0.0005038]
[1768033420522,0.04814841,90677.0,90667.0,0.01153317]
[1768033422043,0.04814841,90677.0,90667.0,0.0005038]
[1768033423930,0.05917656,90677.0,90667.0,0.0005038]
[1768033424132,0.04814841,90677.0,90667.0,0.0005038]
[1768033426603,0.04814841,90677.0,90667.0,0.01153317]
[1768033426804,0.0711165,90682.0,90669.0,0.01102912]
[1768033427808,0.0711165,90682.0,90667.0,0.01153317]
[1768033428067,0.08214404,90682.0,90668.0,0.01102924]
[1768033428493,0.0711165,90682.0,90669.0,0.01102912]
[1768033429977,0.08214404,90682.0,90668.0,0.01102924]
[1768033430374,0.0711165,90682.0,90669.0,0.01102912]
[1768033430622,0.08214404,90682.0,90668.0,0.01102924]
[1768033431736,0.0711165,90682.0,90669.0,0.01102912]
[1768033433576,0.08214404,90682.0,90668.0,0.01102924]
[1768033435020,0.01102766,90681.0,90667.0,0.01153317]
[1768033435227,0.01102779,90680.0,90667.0,0.0005038]
[1768033435459,0.01102766,90681.0,90667.0,0.0005038]
[1768033436015,0.01102766,90681.0,90668.0,0.01102924]
[1768033436551,0.08214404,90682.0,90668.0,0.01102924]
[1768033437804,0.01102766,90681.0,90667.0,0.01153317]
[1768033438450,0.01102779,90680.0,90667.0,0.0005038]
[1768033438957,0.01102766,90681.0,90667.0,0.01153317]
[1768033440340,0.01102766,90681.0,90668.0,0.01102924]
[1768033440598,0.08214404,90682.0,90667.0,0.01153317]
[1768033440599,0.02208,90682.0,90670.0,0.04840585]
[1768033440804,0.03310754,90682.0,90670.0,0.04840585]
[1768033441440,0.03310754,90682.0,90667.0,0.0005038]
[1768033441652,0.01102766,90681.0,90667.0,0.01153317]
[1768033442274,0.01102779,90680.0,90667.0,0.0005038]
[1768033443498,0.01102766,90681.0,90667.0,0.01153317]
[1768033443824,0.03310754,90682.0,90668.0,0.01102924]
[1768033444187,0.02208,90682.0,90668.0,0.01102924]
[1768033445303,0.02208,90682.0,90669.0,0.01102912]
[1768033445706,0.02208,90682.0,90667.0,0.05774545]
[1768033445707,0.01102766,90681.0,90667.0,0.05774545]
[1768033446267,0.01102779,90680.0,90667.0,0.04671608]
[1768033446475,0.01102766,90681.0,90667.0,0.05774545]
[1768033446704,0.01102766,90681.0,90667.0,0.04671608]
[1768033446876,0.01102779,90680.0,90667.0,0.04671608]
[1768033447174,0.01102766,90681.0,90667.0,0.05774545]
[1768033449249,0.03310754,90682.0,90669.0,0.04621228]
[1768033449606,0.01102766,90681.0,90669.0,0.04621228]
[1768033450401,0.01102766,90681.0,90667.0,0.0005038]
[1768033450813,0.01102766,90681.0,90667.0,0.01153317]
[1768033451022,0.01102766,90681.0,90667.0,0.0005038]
[1768033451681,0.01102779,90680.0,90667.0,0.0005038]
[1768033454114,0.01102766,90681.0,90667.0,0.0005038]
[1768033454387,0.01102791,90679.0,90667.0,0.0005038]
[1768033454585,0.01102779,90680.0,90667.0,0.0005038]
[1768033456444,0.01102766,90681.0,90667.0,0.01153317]
[1768033456682,0.01102766,90681.0,90667.0,0.0005038]
[1768033456886,0.01102779,90680.0,90667.0,0.0005038]
[1768033457559,0.0109356,90680.0,90667.0,0.0005038]
[1768033461142,0.01102791,90679.0,90667.0,0.04671608]
[1768033462984,0.01102803,90678.0,90667.0,0.04671608]
[1768033463559,0.01102791,90679.0,90667.0,0.04671608]
[1768033463744,0.01102803,90678.0,90667.0,0.04671608]
[1768033464700,0.01102791,90679.0,90667.0,0.04671608]
[1768033467618,0.01102803,90678.0,90667.0,0.04671608]
[1768033470574,0.01102779,90680.0,90667.0,0.04671608]
[1768033471479,0.01102766,90681.0,90667.0,0.05774545]
[1768033472239,0.03310754,90682.0,90669.0,0.01102912]
[1768033472451,0.03310754,90682.0,90667.0,0.05774545]
[1768033473047,0.08824538,90682.0,90667.0,0.05774545]
[1768033473329,0.01102766,90681.0,90667.0,0.05774545]
[1768033473578,0.01102779,90680.0,90667.0,0.04671608]
[1768033474535,0.01102766,90681.0,90667.0,0.05774545]
[1768033475327,0.01102791,90679.0,90667.0,0.04671608]
[1768033475533,0.01102779,90680.0,90667.0,0.04671608]
[1768033477494,0.01102791,90679.0,90667.0,0.04671608]
[1768033478299,0.01102779,90680.0,90667.0,0.04671608]
[1768033480897,0.01102791,90679.0,90667.0,0.04671608]
[1768033481800,0.01102779,90680.0,90667.0,0.04671608]
[1768033482002,0.01102791,90679.0,90667.0,0.04671608]
[1768033482835,0.01102779,90680.0,90667.0,0.04671608]
[1768033483037,0.01102791,90679.0,90667.0,0.04671608]
[1768033485316,0.01102779,90680.0,90667.0,0.04671608]
[1768033485517,0.01102815,90677.0,90667.0,0.04671608]
[1768033485715,0.01102803,90678.0,90667.0,0.04671608]
[1768033486145,0.01102815,90677.0,90667.0,0.04671608]
[1768033486962,0.06091732,90677.0,90667.0,0.0005038]
[1768033487370,0.04988917,90675.0,90667.0,0.0005038]
[1768033487575,0.04988917,90673.0,90667.0,0.0005038]
[1768033488726,0.05039217,90667.0,90666.0,0.00039]
[1768033488908,0.05047753,90667.0,90666.0,1e-06]
[1768033489138,0.04997453,90667.0,90666.0,1e-06]
[1768033492498,8.536e-05,90667.0,90666.0,0.04747134]
[1768033498419,8.536e-05,90667.0,90666.0,1e-06]
[1768033499215,8.536e-05,90667.0,90666.0,0.04747134]
[1768033500355,8.536e-05,90667.0,90666.0,1e-06]
[1768033503005,3.6e-07,90667.0,90666.0,1e-06]
[1768033511922,3.6e-07,90667.0,90657.0,0.0222318]
[1768033512083,3.6e-07,90667.0,90658.0,0.04764167]
[1768033513008,3.6e-07,90667.0,90658.0,0.04749148]
[1768033516042,3.6e-07,90667.0,90658.0,0.05852194]
[1768033516820,3.6e-07,90667.0,90659.0,0.01103034]
[1768033517026,3.6e-07,90667.0,90660.0,0.01103022]
[1768033517219,3.6e-07,90667.0,90659.0,0.01103034]
[1768033517220,3.6e-07,90667.0,90659.0,0.05867201]
[1768033519066,3.6e-07,90667.0,90661.0,0.0110301]
[1768033519270,3.6e-07,90667.0,90659.0,0.05867201]
[1768033519866,3.6e-07,90667.0,90660.0,0.01103022]
[1768033520045,3.6e-07,90667.0,90659.0,0.05867201]
[1768033527804,3.6e-07,90667.0,90660.0,0.01103022]
[1768033528148,3.6e-07,90667.0,90659.0,0.05867201]
[1768033530921,3.6e-07,90667.0,90659.0,0.01103034]
[1768033534052,3.6e-07,90667.0,90658.0,0.01103046]
[1768033534835,3.6e-07,90667.0,90659.0,0.01103034]
[1768033537946,3.6e-07,90667.0,90659.0,0.01088017]
[1768033539517,3.6e-07,90667.0,90660.0,0.01103022]
[1768033539721,3.6e-07,90667.0,90658.0,0.01103046]
[1768033539921,3.6e-07,90667.0,90657.0,0.03326238]
[1768033540646,3.6e-07,90667.0,90659.0,0.01103034]
[1768033540831,3.6e-07,90667.0,90658.0,0.01103046]
[1768033541179,3.6e-07,90667.0,90657.0,0.03326238]
[1768033541380,3.6e-07,90667.0,90659.0,0.01103034]
[1768033541831,3.6e-07,90667.0,90658.0,0.01103046]
[1768033542760,3.6e-07,90667.0,90657.0,0.03326238]
[1768033543081,3.6e-07,90667.0,90657.0,0.0222318]
[1768033543812,3.6e-07,90667.0,90657.0,0.03326068]
[1768033544467,3.6e-07,90667.0,90657.0,0.04429126]
[1768033545610,0.04924316,90667.0,90657.0,0.02221126]
[1768033551883,0.04924316,90667.0,90658.0,0.01103046]
[1768033552666,0.04924316,90667.0,90658.0,0.01088029]
[1768033553249,0.04924316,90667.0,90657.0,0.02221126]
[1768033553577,0.04924316,90667.0,90657.0,0.0220611]
[1768033554673,0.04924316,90667.0,90658.0,0.01103046]
[1768033554972,0.04924316,90667.0,90658.0,0.01088032]
[1768033555175,0.04924316,90667.0,90657.0,0.0220611]
[1768033556004,0.04924316,90667.0,90658.0,0.01103046]
[1768033563022,3.6e-07,90667.0,90659.0,0.01103034]
[1768033563401,0.04620568,90673.0,90662.0,0.01102997]
[1768033563627,5.044e-05,90673.0,90659.0,0.06004725]
[1768033563743,5.044e-05,90673.0,90664.0,0.01102973]
[1768033563947,5.044e-05,90673.0,90663.0,0.01102985]
[1768033567078,5.044e-05,90673.0,90664.0,0.01102973]
[1768033567246,5.044e-05,90673.0,90665.0,0.01102961]
[1768033567429,0.0466644,90672.0,90665.0,0.01102961]
[1768033567834,0.0466644,90672.0,90664.0,0.01102973]
[1768033568050,0.0466644,90672.0,90663.0,0.01102985]
[1768033568389,0.0466644,90672.0,90667.0,0.01102937]
[1768033568390,0.02453396,90672.0,90667.0,0.01102937]
[1768033568587,0.02422996,90672.0,90668.0,0.01102924]
[1768033568788,5.044e-05,90673.0,90669.0,0.01102912]
[1768033569391,5.044e-05,90673.0,90667.0,0.01102937]
[1768033570345,5.044e-05,90673.0,90668.0,0.01102924]
[1768033570780,5.044e-05,90673.0,90669.0,0.01102912]
[1768033572273,5.044e-05,90673.0,90667.0,0.01102937]
[1768033572471,5.044e-05,90673.0,90665.0,0.01102961]
[1768033572673,5.044e-05,90673.0,90668.0,0.01102924]
[1768033572890,5.044e-05,90673.0,90667.0,0.01102937]
[1768033573282,5.044e-05,90673.0,90667.0,0.06004628]
[1768033573481,5.044e-05,90673.0,90669.0,0.04901691]
[1768033574110,0.04671484,90673.0,90668.0,0.01102924]
[1768033574321,5.044e-05,90673.0,90668.0,0.01102924]
[1768033574522,0.04671484,90673.0,90667.0,0.01102937]
[1768033575159,0.04671484,90673.0,90668.0,0.01102924]
[1768033575755,0.00015016,90680.0,90669.0,0.01102912]
[1768033575910,0.04594005,90679.0,90669.0,0.01102912]
[1768033576809,0.04594005,90679.0,90670.0,0.011029]
[1768033577217,0.04594005,90679.0,90671.0,0.01102888]
[1768033577459,0.04594005,90679.0,90670.0,0.011029]
[1768033578461,0.00015016,90680.0,90670.0,0.011029]
[1768033578462,0.00015016,90680.0,90674.0,0.01102851]
[1768033579158,0.00015016,90680.0,90675.0,0.01102839]
[1768033579399,0.00015016,90680.0,90674.0,0.01102851]
[1768033580304,0.00015016,90680.0,90675.0,0.01102839]
[1768033580721,0.00015016,90680.0,90676.0,0.01102827]
[1768033580924,0.00015016,90680.0,90677.0,0.01102815]
[1768033581334,0.00015016,90680.0,90676.0,0.01102827]
[1768033581489,0.00015016,90680.0,90677.0,0.01102815]
[1768033582287,0.00015016,90680.0,90676.0,0.01102827]
[1768033583514,0.00015016,90680.0,90677.0,0.01102815]
[1768033584764,0.00015016,90680.0,90676.0,0.01102827]
[1768033586290,0.00015016,90680.0,90674.0,0.01102851]
[1768033586439,0.00015016,90680.0,90673.0,0.01102864]
[1768033586605,0.00015016,90680.0,90672.0,0.01102876]
[1768033588189,0.00015016,90680.0,90671.0,0.01102888]
[1768033588734,0.00015016,90680.0,90672.0,0.01102876]
[1768033590016,0.00015016,90680.0,90671.0,0.01102888]
[1768033590221,0.00015016,90680.0,90672.0,0.01102876]
[1768033590766,0.00015016,90680.0,90673.0,0.01102864]
[1768033591035,0.00015016,90680.0,90672.0,0.01102876]
[1768033591199,0.00015016,90680.0,90673.0,0.01102864]
[1768033592145,0.00015016,90680.0,90672.0,0.01102876]
[1768033592285,0.00015016,90680.0,90671.0,0.01102888]
[1768033592693,0.00015016,90680.0,90672.0,0.01102876]
[1768033593408,0.00015016,90680.0,90671.0,0.01102888]
[1768033594027,0.00015016,90680.0,90672.0,0.01102876]
[1768033594235,0.00015016,90680.0,90671.0,0.01102888]
[1768033595184,0.00015016,90680.0,90672.0,0.01102876]
[1768033598362,0.00015016,90680.0,90673.0,0.03309444]
[1768033601886,0.00015016,90680.0,90673.0,0.03209544]
[1768033609982,0.00015016,90680.0,90673.0,0.00996464]
[1768033610194,0.04569118,90680.0,90673.0,0.00996464]
[1768033610392,0.04569118,90680.0,90669.0,0.02208]
[1768033610865,0.04569118,90680.0,90670.0,0.03309557]
[1768033613758,0.04569118,90680.0,90670.0,0.04412457]
[1768033617065,0.04569118,90680.0,90670.0,0.03309557]
[1768033618066,0.01102803,90678.0,90669.0,0.02208]
[1768033618643,0.01102803,90678.0,90669.0,0.05517557]
[1768033619032,0.01102791,90679.0,90669.0,0.05517557]
[1768033619943,0.01102803,90678.0,90669.0,0.05517557]
[1768033620371,0.01102791,90679.0,90669.0,0.05517557]
[1768033620730,0.05671897,90680.0,90669.0,0.05517557]
[1768033620960,0.01102791,90679.0,90669.0,0.05517557]
[1768033623009,0.05671897,90680.0,90669.0,0.05517557]
[1768033625391,0.01102791,90679.0,90669.0,0.05517557]
[1768033625989,0.05671897,90680.0,90669.0,0.05517557]
[1768033626579,0.00053108,90679.0,90669.0,0.05517557]
[1768033629165,0.01102803,90678.0,90669.0,0.05517557]
[1768033629367,0.01155899,90679.0,90669.0,0.05517557]
[1768033630051,0.01102803,90678.0,90669.0,0.05517557]
[1768033630294,0.01155899,90679.0,90669.0,0.05517557]
[1768033630503,0.01102803,90678.0,90669.0,0.05517557]
[1768033630704,0.01155899,90679.0,90669.0,0.05517557]
[1768033632512,0.01155899,90679.0,90669.0,0.05502562]
[1768033635529,0.00053108,90679.0,90669.0,0.05502562]
[1768033636714,0.00053108,90679.0,90669.0,0.02193005]
[1768033636912,0.00053108,90679.0,90670.0,0.01102754]
[1768033637746,0.00053108,90679.0,90670.0,0.01087758]
[1768033658133,0.00053108,90679.0,90669.0,0.02193005]
[1768033658335,0.01102803,90678.0,90669.0,0.02193005]
[1768033658692,0.01155899,90679.0,90669.0,0.02193005]
[1768033659597,0.01102803,90678.0,90669.0,0.02193005]
[1768033659936,0.01155899,90679.0,90669.0,0.02193005]
[1768033663368,0.01155899,90679.0,90668.0,0.01117795]
[1768033664795,0.00053108,90679.0,90668.0,0.01117795]
[1768033665635,0.11487714,90677.0,90668.0,0.01117795]
[1768033667620,0.12590529,90677.0,90662.0,0.01102997]
[1768033667822,0.01102827,90676.0,90662.0,0.01102997]
[1768033668040,0.12590529,90677.0,90662.0,0.01102997]
[1768033668254,0.01102827,90676.0,90662.0,0.01102997]
[1768033668461,0.01102827,90676.0,90663.0,0.03309817]
[1768033668669,0.12590529,90677.0,90663.0,0.04412802]
[1768033669195,0.12590529,90677.0,90663.0,0.01102985]
[1768033669403,0.12590529,90677.0,90664.0,0.03309817]
[1768033669612,0.11487714,90677.0,90664.0,0.0441279]
[1768033669814,0.02208,90676.0,90664.0,0.0441279]
[1768033672998,0.02208,90676.0,90665.0,0.01102961]
[1768033673559,0.02208,90676.0,90664.0,0.0441279]
[1768033673761,0.02208,90676.0,90665.0,0.01102961]
[1768033674427,0.02208,90676.0,90666.0,0.01102949]
[1768033683215,0.02208,90676.0,90665.0,0.01102961]
[1768033684311,0.02208,90676.0,90666.0,0.01102949]
[1768033685070,0.02208,90676.0,90665.0,0.01102961]
[1768033685314,0.02208,90676.0,90666.0,0.01102949]
[1768033685517,0.02208,90676.0,90665.0,0.01102961]
[1768033686281,0.02208,90676.0,90666.0,0.01102949]
[1768033687724,0.02208,90676.0,90666.0,0.01107993]
[1768033688002,0.02208,90676.0,90666.0,5.044e-05]
[1768033690357,0.11210617,90681.0,90666.0,5.044e-05]
[1768033690358,0.01102596,90695.0,90682.0,0.04795975]
[1768033690557,0.0001518,90689.0,90683.0,0.04795975]
[1768033690756,0.0001518,90689.0,90683.0,0.05898717]
[1768033690958,0.0001518,90689.0,90682.0,0.01102754]
[1768033691137,0.0001518,90689.0,90686.0,0.01102706]
[1768033691294,0.0001518,90689.0,90683.0,0.01102742]
[1768033691295,8e-07,90689.0,90683.0,0.01102742]
[1768033691504,8e-07,90689.0,90686.0,0.01102706]
[1768033691740,8e-07,90689.0,90685.0,0.05898693]
[1768033691921,8e-07,90689.0,90686.0,0.01102706]
[1768033692135,8e-07,90689.0,90685.0,0.05898693]
[1768033692524,8e-07,90689.0,90685.0,0.04795975]
[1768033692727,8e-07,90689.0,90685.0,0.0478098]
[1768033693582,8e-07,90689.0,90685.0,0.04544532]
[1768033698412,8e-07,90689.0,90679.0,0.05898766]
[1768033698989,8e-07,90689.0,90681.0,0.01102766]
[1768033700891,8e-07,90689.0,90680.0,0.04795975]
[1768033701172,8e-07,90689.0,90680.0,0.05898754]
[1768033702653,8e-07,90689.0,90681.0,0.05898741]
[1768033702775,8e-07,90689.0,90683.0,0.01102742]
[1768033703433,8e-07,90689.0,90684.0,0.04795975]
[1768033703760,8e-07,90689.0,90684.0,0.05898705]
[1768033705721,8e-07,90689.0,90684.0,0.04795975]
[1768033705919,8e-07,90689.0,90684.0,0.05898705]
[1768033706708,8e-07,90689.0,90684.0,0.04795975]
[1768033707356,8e-07,90689.0,90684.0,0.0478098]
[1768033709769,8e-07,90689.0,90684.0,0.0588371]
[1768033712064,8e-07,90689.0,90684.0,0.0478098]
[1768033712265,8e-07,90689.0,90684.0,0.0588371]
[1768033712499,8e-07,90689.0,90684.0,0.0478098]
[1768033714373,8e-07,90689.0,90684.0,0.0588371]
[1768033714887,8e-07,90689.0,90684.0,0.0478098]
[1768033715049,8e-07,90689.0,90684.0,0.0588371]
[1768033715455,8e-07,90689.0,90684.0,0.0478098]
[1768033717086,8e-07,90689.0,90684.0,0.0588371]
[1768033719248,8e-07,90689.0,90684.0,0.0478098]
[1768033724555,8e-07,90689.0,90684.0,0.0588371]
[1768033724712,8e-07,90689.0,90684.0,0.0478098]
[1768033724911,8e-07,90689.0,90684.0,0.0588371]
[1768033733068,8e-07,90689.0,90685.0,0.01102718]
[1768033733272,8e-07,90689.0,90684.0,0.0588371]
[1768033735771,8e-07,90689.0,90684.0,0.0478098]
[1768033736749,8e-07,90689.0,90684.0,0.0588371]
[1768033737204,8e-07,90689.0,90684.0,0.0478098]
[1768033744850,8e-07,90689.0,90679.0,0.23013651]
[1768033745101,0.000541,90684.0,90680.0,0.04504836]
[1768033745326,8e-07,90689.0,90677.0,0.01102815]
[1768033746074,8e-07,90689.0,90678.0,0.01102803]
[1768033746298,8e-07,90689.0,90677.0,0.01102815]
[1768033746773,8e-07,90689.0,90678.0,0.01102803]
[1768033747343,0.000541,90678.0,90670.0,0.011029]
[1768033747567,0.000541,90678.0,90670.0,0.0330943]
[1768033747745,0.01102742,90683.0,90674.0,0.06712836]
[1768033747949,0.01102754,90682.0,90674.0,0.06708333]
[1768033748501,0.01102766,90681.0,90671.0,0.01102742]
[1768033748706,0.00067423,90674.0,90666.0,5.044e-05]
[1768033748914,0.00013323,90674.0,90666.0,5.044e-05]
[1768033749379,0.01102791,90679.0,90666.0,5.044e-05]
[1768033749621,0.01102791,90679.0,90666.0,0.00020144]
[1768033749826,0.01102779,90680.0,90666.0,0.01123093]
[1768033753588,0.01102791,90679.0,90666.0,0.00020144]
[1768033753709,0.01102779,90680.0,90666.0,0.01123093]
[1768033757160,0.01102766,90681.0,90666.0,0.01123093]
[1768033757161,0.01102766,90681.0,90667.0,0.01102937]
[1768033757334,0.01102779,90680.0,90666.0,0.01123093]
[1768033757546,0.01102779,90680.0,90667.0,0.000151]
[1768033758814,0.05513775,90682.0,90668.0,0.04504836]
[1768033759027,0.13912205,90755.0,90687.0,0.04504836]
[1768033759028,0.05512446,90704.0,90687.0,0.04504836]
[1768033759237,0.04860443,90697.0,90688.0,0.2411886]
[1768033759446,0.01102523,90701.0,90689.0,0.04504836]
[1768033759890,0.01102547,90699.0,90689.0,0.04504836]
[1768033760097,0.00507993,90697.0,90689.0,0.04504836]
[1768033762306,0.00507993,90697.0,90688.0,0.02208]
[1768033767157,0.01610565,90697.0,90688.0,0.02208]
[1768033767501,0.00507993,90697.0,90688.0,0.02208]
[1768033768592,0.01610565,90697.0,90688.0,0.02208]
[1768033768794,0.00507993,90697.0,90688.0,0.02208]
[1768033769003,0.01610565,90697.0,90688.0,0.02208]
[1768033769954,0.01610565,90697.0,90687.0,0.00066163]
[1768033771587,0.01102657,90690.0,90683.0,0.02043031]
[1768033771979,0.01102657,90690.0,90672.0,0.01102876]
[1768033771980,0.01102657,90690.0,90680.0,0.02208]
[1768033772250,0.01102681,90688.0,90680.0,0.02208]
[1768033772442,0.01102693,90687.0,90680.0,0.02208]
[1768033772654,0.01102718,90685.0,90671.0,0.04504836]
[1768033772854,0.01102693,90687.0,90674.0,0.02208]
[1768033773008,0.01102706,90686.0,90674.0,0.02208]
[1768033773409,0.01102693,90687.0,90674.0,0.02208]
[1768033773613,0.01102706,90686.0,90674.0,0.02208]
[1768033775007,0.00507993,90685.0,90674.0,0.02208]
[1768033776124,0.00507993,90685.0,90675.0,0.04922526]
[1768033779683,0.0110262,90693.0,90675.0,0.06025365]
[1768033779884,0.0110262,90693.0,90678.0,0.01102803]
[1768033780127,0.0110262,90693.0,90679.0,0.01102791]
[1768033782087,0.06074168,90692.0,90677.0,0.06025341]
[1768033782215,0.06074168,90692.0,90678.0,0.01102803]
[1768033782871,0.04971535,90692.0,90678.0,0.01102803]
[1768033783195,0.03310596,90695.0,90681.0,0.06025292]
[1768033784767,0.02208,90695.0,90681.0,0.06025292]
[1768033784990,0.03310596,90695.0,90681.0,0.06025292]
[1768033785923,0.02208,90695.0,90682.0,0.01102754]
[1768033786756,0.03310596,90695.0,90681.0,0.06025292]
[1768033786961,0.02208,90695.0,90681.0,0.06025292]
[1768033788268,0.02208,90695.0,90682.0,0.01102754]
[1768033788473,0.0498582,90694.0,90682.0,0.01102754]
[1768033789930,0.0498582,90694.0,90680.0,0.01102779]
[1768033790137,0.0498582,90693.0,90680.0,0.01102779]
[1768033792369,0.0498582,90693.0,90681.0,0.01102766]
[1768033792906,0.0608844,90693.0,90679.0,0.01102791]
[1768033793205,0.0498582,90693.0,90680.0,0.01102779]
[1768033796169,0.0608844,90693.0,90679.0,0.01102791]
[1768033796411,0.0498582,90693.0,90680.0,0.01102779]
[1768033797512,0.0498582,90693.0,90681.0,0.01102766]
[1768033798840,0.0498582,90693.0,90680.0,0.01102779]
[1768033799248,0.0608844,90693.0,90679.0,0.01102791]
[1768033799660,0.01102633,90692.0,90678.0,0.01102803]
[1768033799865,0.05758422,90692.0,90678.0,0.01102803]
[1768033800081,0.04655789,90692.0,90679.0,0.01102791]
[1768033800908,0.05758422,90692.0,90679.0,0.01102791]
[1768033801126,0.04655789,90690.0,90675.0,0.06617017]
[1768033801337,0.04655789,90688.0,90675.0,0.01102839]
[1768033801757,0.04655789,90688.0,90676.0,0.01102827]
[1768033802000,0.04655789,90688.0,90677.0,0.01102815]
[1768033802865,0.04655789,90688.0,90675.0,0.01102839]
[1768033803404,0.04655789,90688.0,90674.0,0.03310851]
[1768033803610,0.04655789,90688.0,90675.0,0.01102839]
[1768033803958,0.04655789,90688.0,90676.0,0.01102827]
[1768033805929,0.04655789,90688.0,90677.0,0.01102815]
[1768033806157,0.04655789,90688.0,90676.0,0.01102827]
[1768033806626,0.04655789,90688.0,90677.0,0.01102815]
[1768033807070,0.04655789,90688.0,90676.0,0.01102827]
[1768033811160,0.04655789,90688.0,90677.0,0.01102815]
[1768033812469,0.04655789,90688.0,90676.0,0.01102827]
[1768033812715,0.04655789,90688.0,90677.0,0.01102815]
[1768033814921,0.04655789,90688.0,90676.0,0.01102827]
[1768033815257,0.04655789,90688.0,90677.0,0.01102815]
[1768033815478,0.04655789,90688.0,90676.0,0.01102827]
[1768033815680,0.04655789,90688.0,90674.0,0.03310851]
[1768033815888,0.04655789,90688.0,90674.0,0.02208]
[1768033816228,0.0575847,90688.0,90674.0,0.03310851]
[1768033817384,0.01102693,90687.0,90674.0,0.02208]
[1768033817588,0.01102718,90685.0,90674.0,0.02208]
[1768033817975,0.01102706,90686.0,90674.0,0.02208]
[1768033818182,0.01102718,90685.0,90674.0,0.02208]
[1768033818355,0.01102791,90679.0,90672.0,0.06756236]
[1768033818561,0.01102779,90680.0,90672.0,0.04548236]
[1768033818775,0.01102888,90671.0,90667.0,0.000151]
[1768033818992,0.01102876,90672.0,90667.0,0.000151]
[1768033819198,0.01102864,90673.0,90667.0,0.000151]
[1768033819397,0.01102876,90672.0,90667.0,0.000151]
[1768033819607,0.01102864,90673.0,90667.0,0.000151]
[1768033821697,0.01102876,90672.0,90667.0,0.000151]
[1768033822302,0.01102864,90673.0,90667.0,0.000151]
[1768033822880,0.01102876,90672.0,90667.0,0.000151]
[1768033823222,0.01102864,90673.0,90667.0,0.000151]
[1768033826649,0.01102827,90676.0,90667.0,0.000151]
[1768033826823,0.01102779,90680.0,90676.0,0.000999]
[1768033827028,0.066168,90679.0,90676.0,0.000999]
[1768033827252,0.01102791,90679.0,90676.0,0.000999]
[1768033827576,0.01102815,90677.0,90667.0,0.000151]
[1768033827802,0.01102791,90679.0,90667.0,0.000151]
[1768033829294,0.01102803,90678.0,90667.0,0.000151]
[1768033829689,0.01102815,90677.0,90667.0,0.000151]
[1768033829887,0.01102803,90678.0,90667.0,0.000151]
[1768033830109,0.01102815,90677.0,90667.0,0.000151]
[1768033831290,0.01102827,90676.0,90667.0,0.000151]
[1768033831709,0.01102839,90675.0,90667.0,0.000151]
[1768033832154,0.01102851,90674.0,90667.0,0.000151]